fUSD/lending_fUSD_20240614
["ID","MTS","AMOUNT","RATE_DAILY","PERIOD"]
[329459489,1718377849960,-409.14289488,0.00021942,2]
[329459490,1718377849975,-791.01559774,0.00022,2]
[329459491,1718377849995,-240.69537139,0.00022,2]
[329459492,1718377850007,-1063.1488667,0.00022,2]
[329459493,1718377850019,-700.0,0.00022054,2]
[329459494,1718377850037,-289.39,0.00022302,2]
[329459495,1718377850049,-706.88,0.00022429,2]
[329459496,1718377850068,-314.82813199,0.00022602,2]
[329459497,1718377850104,-500.0,0.00022602,2]
[329459498,1718377850121,-500.0,0.00022602,2]
[329459499,1718377850133,-700.0,0.00022602,2]
[329459500,1718377850144,-3614.682,0.00022728,2]
[329459501,1718377850183,-222.995,0.00022911,2]
[329459502,1718377850230,-865.824,0.00022911,2]
[329459503,1718377850248,-150.0,0.00022971,2]
[329459504,1718377850286,-763.74314363,0.00022995,2]
[329459505,1718377850336,-5000.0,0.00023,2]
[329459506,1718377850418,-155.3045437,0.00023,2]
[329459507,1718377850452,-1300.0,0.00023,2]
[329459508,1718377850491,-1000.0,0.00023,3]
[329459509,1718377850544,-1000.0,0.00023,3]
[329459510,1718377850568,-1002.0,0.00023,3]
[329459511,1718377850600,-200.0,0.00023,2]
[329459512,1718377850614,-150.0,0.00023071,2]
[329459513,1718377850643,-150.0,0.00023084,2]
[329459514,1718377850664,-150.0,0.00023109,2]
[329459515,1718377850690,-150.0,0.00023129,2]
[329459516,1718377850735,-300.0,0.00023131,2]
[329459517,1718377850749,-150.0,0.00023138,2]
[329459518,1718377850786,-500.0,0.0002315,2]
[329459519,1718377850822,-700.0,0.0002315,2]
[329459520,1718377850851,-150.0,0.00023152,2]
[329459521,1718377850923,-150.0,0.00023158,2]
[329459522,1718377850963,-167.25,0.00023171,2]
[329459523,1718377850985,-150.0,0.00023181,2]
[329459524,1718377851018,-150.0,0.00023183,2]
[329459525,1718377851050,-150.0,0.00023206,2]
[329459526,1718377851075,-150.0,0.00023219,2]
[329459527,1718377851103,-151.43,0.00023221,2]
[329459528,1718377851152,-1706.388,0.00023231,2]
[329459529,1718377851167,-707.028,0.00023231,2]
[329459530,1718377851229,-197.215,0.00023231,2]
[329459531,1718377851258,-294.42,0.00023231,2]
[329459532,1718377851296,-301.628,0.00023231,2]
[329459533,1718377851356,-150.0,0.00023231,2]
[329459534,1718377851368,-1228.532,0.00023231,2]
[329459535,1718377851379,-1978.0,0.00023231,2]
[329459536,1718377851392,-150.0,0.00023272,2]
[329459537,1718377851405,-150.0,0.00023276,2]
[329459538,1718377851428,-34071.69167557,0.00023287,2]
[329459539,1718377851457,-150.0,0.00023314,2]
[329459540,1718377851525,-150.0,0.00023347,2]
[329459541,1718377851539,-150.0,0.00023359,2]
[329459542,1718377851575,-150.0,0.00023393,2]
[329459543,1718377851597,-150.0,0.00023398,2]
[329459544,1718377851628,-150.0,0.00023428,2]
[329459545,1718377851647,-300.0,0.00023435,2]
[329459546,1718377851659,-150.0,0.00023438,2]
[329459547,1718377851689,-150.0,0.00023463,2]
[329459548,1718377851705,-150.0,0.00023482,2]
[329459549,1718377851720,-1000.0,0.000235,3]
[329459550,1718377851732,-1000.0,0.000235,3]
[329459551,1718377851750,-1000.0,0.000235,4]
[329459552,1718377851762,-1002.0,0.000235,3]
[329459553,1718377851775,-150.0,0.00023506,2]
[329459554,1718377851801,-150.0,0.00023518,2]
[329459555,1718377851817,-150.0,0.00023518,2]
[329459556,1718377851836,-150.0,0.00023527,2]
[329459557,1718377851868,-841.46,0.00023543,2]
[329459558,1718377851898,-841.46,0.00023549,2]
[329459559,1718377851914,-150.0,0.00023553,2]
[329459560,1718377851940,-150.0,0.00023553,2]
[329459561,1718377851979,-841.46,0.00023556,2]
[329459562,1718377852067,-150.0,0.0002356,2]
[329459563,1718377852132,-841.46,0.00023562,2]
[329459564,1718377852172,-150.0,0.00023562,2]
[329459565,1718377852214,-841.46,0.00023568,2]
[329459566,1718377852242,-841.46,0.00023574,2]
[329459568,1718377852256,-303.68745957,0.00023576,7]
[329459570,1718377852267,-3170.85830177,0.00023576,7]
[329459572,1718377852277,-103944.411174,0.00023576,7]
[329459573,1718377852320,-2628.83005234,0.00023576,7]
[329459575,1718377852337,-841.46,0.0002358,2]
[329459576,1718377852360,-841.46,0.00023586,2]
[329459577,1718377852398,-841.46,0.00023593,2]
[329459578,1718377852413,-841.46,0.00023599,2]
[329459579,1718377852456,-65206.28766066,0.000236,2]
[329459580,1718377852469,-32320.13741459,0.000236,2]
[329459581,1718377852494,-288.09857484,0.000236,2]
[329459582,1718377852515,-841.46,0.00023605,2]
[329459583,1718377852550,-841.46,0.00023611,2]
[329459584,1718377852609,-841.46,0.00023617,2]
[329459585,1718377852628,-150.0,0.0002362,2]
[329459586,1718377852684,-841.46,0.00023624,2]
[329459587,1718377852701,-841.46,0.0002363,2]
[329459588,1718377852746,-150.0,0.00023633,2]
[329459589,1718377852778,-841.46,0.00023636,2]
[329459590,1718377852793,-841.46,0.00023642,2]
[329459591,1718377852821,-841.46,0.00023648,2]
[329459592,1718377852834,-841.46,0.00023655,2]
[329459593,1718377852877,-150.0,0.00023657,2]
[329459594,1718377852891,-841.46,0.00023661,2]
[329459595,1718377852914,-150.0,0.00023665,2]
[329459596,1718377852925,-3681.485,0.0002368,2]
[329459597,1718377852936,-500.0,0.00023698,2]
[329459598,1718377852972,-500.0,0.00023698,2]
[329459599,1718377853010,-700.0,0.00023698,2]
[329459600,1718377853038,-150.0,0.00023738,2]
[329459601,1718377853061,-300.0,0.00023739,2]
[329459602,1718377853072,-150.0,0.00023748,2]
[329459603,1718377853083,-199.36126685,0.0002378,2]
[329459604,1718377853094,-6752.64138281,0.0002378,2]
[329459605,1718377853106,-176.98889232,0.0002378,2]
[329459606,1718377853132,-176.24870704,0.0002378,2]
[329459607,1718377853162,-203.45173277,0.0002378,2]
[329459608,1718377853179,-151.0,0.00023785,2]
[329459609,1718377853190,-150.0,0.00023786,2]
[329459610,1718377853203,-150.0,0.00023792,2]
[329459611,1718377853225,-155.0,0.000238,2]
[329459612,1718377853254,-1500.0,0.00023801,2]
[329459613,1718377853267,-150.0,0.00023825,2]
[329459614,1718377853295,-150.0,0.0002383,2]
[329459615,1718377853345,-150.0,0.00023844,2]
[329459616,1718377853388,-1500.0,0.00023856,2]
[329459617,1718377853409,-150.0,0.00023866,2]
[329459618,1718377853421,-150.0,0.00023877,2]
[329459619,1718377853433,-134790.31981581,0.0002388,2]
[329459620,1718377853459,-416.42397101,0.0002388,2]
[329459621,1718377853502,-150.0,0.0002389,2]
[329459622,1718377853515,-150.0,0.00023912,2]
[329459623,1718377853550,-150.0,0.00023928,2]
[329459624,1718377853578,-150.0,0.00023936,2]
[329459625,1718377853608,-150.0,0.00023939,2]
[329459626,1718377853633,-600.0,0.00023953,2]
[329459627,1718377853676,-150.0,0.00023954,2]
[329459628,1718377853748,-150.0,0.00023988,2]
[329459629,1718377853770,-151.43,0.0002399,2]
[329459630,1718377853799,-150.0,0.00023999,2]
[329459631,1718377853810,-2086.67629344,0.00024,3]
[329459632,1718377853828,-312.06488343,0.00024,10]
[329459633,1718377853857,-1000.0,0.00024,4]
[329459634,1718377853869,-381.79166567,0.00024,2]
[329459635,1718377853886,-170.16176489,0.00024009,2]
[329459636,1718377853903,-7500.0,0.00024009,2]
[329459637,1718377853915,-150.0,0.00024013,2]
[329459638,1718377853926,-364.79601266,0.00024019,2]
[329459639,1718377853973,-150.0,0.0002402,2]
[329459640,1718377854000,-150.0,0.00024023,2]
[329459641,1718377854023,-150.0,0.00024028,2]
[329459642,1718377854034,-2130.20228696,0.0002403,2]
[329459643,1718377854052,-150.0,0.00024032,2]
[329459644,1718377854073,-300.0,0.00024044,2]
[329459645,1718377854105,-150.0,0.00024044,2]
[329459646,1718377854124,-150.0,0.00024053,2]
[329459647,1718377854151,-150.0,0.00024063,2]
[329459648,1718377854182,-150.0,0.00024066,2]
[329459649,1718377854241,-215.0,0.0002407,2]
[329459650,1718377854268,-166.66666667,0.0002407,2]
[329459651,1718377854352,-2058.05239766,0.000241,2]
[329459652,1718377854377,-5007.06797197,0.00024107,2]
[329459653,1718377854401,-500.0,0.00024109,3]
[329459654,1718377854438,-601.21280356,0.00024109,3]
[329459655,1718377854462,-509.10354721,0.00024109,3]
[329459656,1718377854495,-500.0,0.00024109,3]
[329459657,1718377854523,-509.65406062,0.00024109,3]
[329459658,1718377854540,-504.5604547,0.00024109,3]
[329459659,1718377854576,-500.0,0.00024109,3]
[329459660,1718377854607,-500.0,0.00024109,3]
[329459661,1718377854624,-500.0,0.00024109,3]
[329459662,1718377854654,-614.22301426,0.00024109,3]
[329459663,1718377854719,-500.0,0.00024109,3]
[329459664,1718377854740,-500.0,0.00024109,3]
[329459665,1718377854780,-500.0,0.00024109,3]
[329459666,1718377854876,-500.0,0.00024109,3]
[329459667,1718377854902,-500.0,0.00024109,3]
[329459668,1718377854935,-500.0,0.00024109,3]
[329459669,1718377854947,-500.0,0.00024109,3]
[329459670,1718377854972,-500.0,0.00024109,3]
[329459671,1718377854994,-500.0,0.00024109,3]
[329459672,1718377855009,-500.0,0.00024109,3]
[329459673,1718377855072,-500.0,0.00024109,3]
[329459674,1718377855085,-500.0,0.00024109,3]
[329459675,1718377855105,-500.0,0.00024109,3]
[329459676,1718377855125,-500.0,0.00024109,3]
[329459677,1718377855146,-500.0,0.00024109,3]
[329459678,1718377855177,-500.0,0.00024109,3]
[329459679,1718377855223,-500.0,0.00024109,3]
[329459680,1718377855260,-500.0,0.00024109,3]
[329459681,1718377855272,-500.0,0.00024109,3]
[329459682,1718377855328,-500.0,0.00024109,3]
[329459683,1718377855352,-596.51,0.00024109,3]
[329459684,1718377855376,-500.0,0.00024109,3]
[329459685,1718377855395,-500.0,0.00024109,3]
[329459686,1718377855407,-500.0,0.00024109,3]
[329459687,1718377855435,-546.27140286,0.00024109,3]
[329459688,1718377855469,-618.66,0.00024109,3]
[329459689,1718377855500,-500.0,0.00024109,3]
[329459690,1718377855519,-500.0,0.00024109,3]
[329459691,1718377855530,-500.0,0.00024109,3]
[329459692,1718377855544,-500.0,0.00024109,3]
[329459693,1718377855589,-500.0,0.00024109,3]
[329459694,1718377855618,-521.18262865,0.00024109,3]
[329459695,1718377855655,-505.3493655,0.00024109,3]
[329459696,1718377855680,-500.0,0.00024109,3]
[329459697,1718377855692,-500.0,0.00024109,3]
[329459698,1718377855711,-431.2294055,0.00024109,3]
[329459699,1718377855725,-500.0,0.00024109,3]
[329459700,1718377855740,-500.0,0.00024109,3]
[329459701,1718377855758,-500.0,0.00024109,3]
[329459702,1718377855780,-500.0,0.00024109,3]
[329459703,1718377855794,-500.0,0.00024109,3]
[329459704,1718377855807,-500.0,0.00024109,3]
[329459705,1718377855818,-500.0,0.00024109,3]
[329459706,1718377855850,-500.0,0.00024109,3]
[329459707,1718377855866,-511.37150831,0.00024109,3]
[329459708,1718377855878,-500.0,0.00024109,3]
[329459709,1718377855917,-509.55753674,0.00024109,3]
[329459710,1718377855930,-500.0,0.00024109,3]
[329459711,1718377855949,-500.0,0.00024109,3]
[329459712,1718377855966,-524.9435212,0.00024109,3]
[329459713,1718377856012,-294.65479717,0.00024109,3]
[329459714,1718377856033,-513.75269132,0.00024109,3]
[329459715,1718377856076,-500.0,0.00024109,3]
[329459716,1718377856088,-500.0,0.00024109,3]
[329459717,1718377856122,-500.0,0.00024109,3]
[329459718,1718377856136,-500.0,0.00024109,3]
[329459719,1718377856192,-505.7465952,0.00024109,3]
[329459720,1718377856234,-506.73594409,0.00024109,3]
[329459721,1718377856264,-494.84568875,0.00024109,3]
[329459722,1718377856301,-500.0,0.00024109,3]
[329459723,1718377856316,-500.0,0.00024109,3]
[329459724,1718377856360,-500.0,0.00024109,3]
[329459725,1718377856395,-511.39049692,0.00024109,3]
[329459726,1718377856406,-500.0,0.00024109,3]
[329459727,1718377856418,-508.31356964,0.00024109,3]
[329459728,1718377856428,-500.0,0.00024109,3]
[329459729,1718377856469,-501.8299452,0.00024109,3]
[329459730,1718377856479,-505.73018547,0.00024109,3]
[329459731,1718377856509,-505.31512473,0.00024109,3]
[329459732,1718377856521,-507.34564035,0.00024109,3]
[329459733,1718377856534,-502.60825192,0.00024109,3]
[329459734,1718377856559,-500.0,0.00024109,3]
[329459735,1718377856571,-202.34260273,0.00024109,3]
[329459736,1718377856586,-502.39300298,0.00024109,3]
[329459737,1718377856600,-506.33056541,0.00024109,3]
[329459738,1718377856616,-508.36155078,0.00024109,3]
[329459739,1718377856632,-500.0,0.00024109,3]
[329459740,1718377856645,-499.17403117,0.00024109,3]
[329459741,1718377856657,-506.45464056,0.00024109,3]
[329459742,1718377856680,-523.15788649,0.00024109,3]
[329459743,1718377856708,-500.0,0.00024109,3]
[329459744,1718377856740,-568.38910074,0.00024109,3]
[329459745,1718377856762,-500.0,0.00024109,3]
[329459746,1718377856773,-508.73462289,0.00024109,3]
[329459747,1718377856785,-509.29364207,0.00024109,3]
[329459748,1718377856798,-500.0,0.00024109,3]
[329459749,1718377856819,-500.0,0.00024109,3]
[329459750,1718377856831,-500.0,0.00024109,3]
[329459751,1718377856863,-310.21169917,0.00024109,3]
[329459752,1718377856887,-510.54349073,0.00024109,3]
[329459753,1718377856933,-500.0,0.00024109,3]
[329459754,1718377856949,-500.0,0.00024109,3]
[329459755,1718377856967,-765.12,0.00024109,3]
[329459756,1718377856983,-557.25,0.00024109,3]
[329459757,1718377856997,-500.0,0.00024109,3]
[329459758,1718377857009,-500.0,0.00024109,3]
[329459759,1718377857020,-643.01944253,0.00024109,3]
[329459760,1718377857032,-159.37391797,0.00024109,3]
[329459761,1718377857042,-500.0,0.00024109,3]
[329459762,1718377857103,-306.51118842,0.00024109,3]
[329459763,1718377857156,-500.0,0.00024109,3]
[329459764,1718377857170,-500.0,0.00024109,3]
[329459765,1718377857212,-500.0,0.00024109,3]
[329459766,1718377857234,-500.0,0.00024109,3]
[329459767,1718377857300,-456.07558001,0.00024109,3]
[329459768,1718377857333,-413.42099252,0.00024109,3]
[329459769,1718377857405,-364.60959321,0.00024109,3]
[329459770,1718377857418,-313.65475926,0.00024109,3]
[329459771,1718377857442,-500.0,0.00024109,3]
[329459772,1718377857460,-258.04755901,0.00024109,3]
[329459773,1718377857540,-500.0,0.00024109,3]
[329459774,1718377857554,-500.0,0.00024109,3]
[329459775,1718377857575,-500.0,0.00024109,3]
[329459776,1718377857601,-500.0,0.00024109,3]
[329459777,1718377857632,-500.0,0.00024109,3]
[329459778,1718377857666,-387.32862899,0.00024109,3]
[329459779,1718377857682,-293.6395272,0.00024109,3]
[329459780,1718377857693,-186.63938942,0.00024109,3]
[329459781,1718377857766,-250.0,0.00024109,3]
[329459782,1718377857804,-500.0,0.00024109,2]
[329459783,1718377857816,-500.0,0.00024109,3]
[329459784,1718377857826,-500.0,0.00024109,3]
[329459785,1718377857846,-500.0,0.00024109,3]
[329459786,1718377857860,-500.0,0.00024109,3]
[329459787,1718377857931,-500.0,0.00024109,3]
[329459788,1718377857943,-500.0,0.00024109,3]
[329459789,1718377857955,-500.0,0.00024109,3]
[329459790,1718377857968,-500.0,0.00024109,3]
[329459791,1718377857979,-500.0,0.00024109,3]
[329459792,1718377858007,-500.0,0.00024109,3]
[329459793,1718377858064,-572.82,0.00024109,3]
[329459794,1718377858080,-500.0,0.00024109,3]
[329459795,1718377858104,-500.0,0.00024109,3]
[329459796,1718377858116,-221.71418814,0.00024109,3]
[329459797,1718377858129,-500.0,0.00024109,3]
[329459798,1718377858141,-500.0,0.00024109,3]
[329459799,1718377858176,-500.0,0.00024109,3]
[329459800,1718377858187,-525.42947892,0.00024109,3]
[329459801,1718377858204,-500.0,0.00024109,3]
[329459802,1718377858222,-536.46710781,0.00024109,3]
[329459803,1718377858265,-500.0,0.00024109,2]
[329459804,1718377858286,-500.0,0.00024109,3]
[329459805,1718377858333,-520.77,0.00024109,3]
[329459806,1718377858357,-500.0,0.00024109,3]
[329459807,1718377858385,-500.0,0.00024109,3]
[329459808,1718377858410,-493.12999422,0.00024109,3]
[329459809,1718377858423,-393.40367197,0.00024109,3]
[329459810,1718377858452,-500.0,0.00024109,3]
[329459811,1718377858484,-500.0,0.00024109,3]
[329459812,1718377858510,-518.62167005,0.00024109,3]
[329459813,1718377858533,-500.0,0.00024109,3]
[329459814,1718377858588,-500.0,0.00024109,3]
[329459815,1718377858605,-500.0,0.00024109,3]
[329459816,1718377858617,-500.0,0.00024109,3]
[329459817,1718377858641,-500.0,0.00024109,3]
[329459818,1718377858677,-500.0,0.00024109,3]
[329459819,1718377858691,-500.0,0.00024109,3]
[329459820,1718377858716,-500.0,0.00024109,3]
[329459821,1718377858728,-500.0,0.00024109,3]
[329459822,1718377858741,-500.0,0.00024109,3]
[329459823,1718377858792,-500.0,0.00024109,3]
[329459824,1718377858828,-500.0,0.00024109,3]
[329459825,1718377858845,-513.74659307,0.00024109,3]
[329459826,1718377858861,-500.0,0.00024109,3]
[329459827,1718377858941,-500.0,0.00024109,3]
[329459828,1718377858954,-500.0,0.00024109,3]
[329459829,1718377858990,-526.18729188,0.00024109,3]
[329459830,1718377859025,-500.0,0.00024109,3]
[329459831,1718377859050,-492.76765987,0.00024109,3]
[329459832,1718377859101,-607.07789125,0.00024109,3]
[329459833,1718377859344,-500.0,0.00024109,3]
[329459834,1718377859400,-500.0,0.00024109,3]
[329459835,1718377859424,-500.0,0.00024109,3]
[329459836,1718377859443,-564.12849435,0.00024109,3]
[329459837,1718377859510,-500.0,0.00024109,3]
[329459838,1718377859549,-500.0,0.00024109,3]
[329459839,1718377859572,-519.81333208,0.00024109,3]
[329459840,1718377859621,-500.0,0.00024109,3]
[329459841,1718377859644,-500.0,0.00024109,3]
[329459842,1718377859668,-500.0,0.00024109,3]
[329459843,1718377859695,-500.0,0.00024109,3]
[329459844,1718377859728,-500.0,0.00024109,3]
[329459845,1718377859739,-269.05669343,0.00024109,3]
[329459846,1718377859803,-500.0,0.00024109,3]
[329459847,1718377859816,-500.0,0.00024109,3]
[329459848,1718377859828,-500.0,0.00024109,3]
[329459849,1718377859870,-500.0,0.00024109,3]
[329459850,1718377859885,-500.0,0.00024109,3]
[329459851,1718377859918,-500.0,0.00024109,3]
[329459852,1718377859957,-500.0,0.00024109,3]
[329459854,1718377859997,-500.0,0.00024109,3]
[329459855,1718377860034,-500.0,0.00024109,3]
[329459856,1718377860064,-500.0,0.00024109,3]
[329459857,1718377860112,-500.0,0.00024109,3]
[329459858,1718377860132,-577.58,0.00024109,3]
[329459859,1718377860165,-168.28641572,0.00024109,3]
[329459860,1718377860193,-500.0,0.00024109,3]
[329459861,1718377860210,-500.0,0.00024109,3]
[329459862,1718377860231,-545.60054073,0.00024109,3]
[329459863,1718377860257,-507.45656527,0.00024109,3]
[329459864,1718377860269,-500.0,0.00024109,3]
[329459865,1718377860281,-500.0,0.00024109,3]
[329459866,1718377860308,-511.59589561,0.00024109,3]
[329459867,1718377860337,-500.0,0.00024109,3]
[329459868,1718377860361,-526.87593644,0.00024109,3]
[329459869,1718377860389,-500.0,0.00024109,3]
[329459870,1718377860437,-500.0,0.00024109,3]
[329459871,1718377860460,-500.0,0.00024109,3]
[329459872,1718377860490,-500.0,0.00024109,3]
[329459873,1718377860515,-500.0,0.00024109,3]
[329459874,1718377860526,-500.0,0.00024109,3]
[329459875,1718377860559,-500.0,0.00024109,3]
[329459876,1718377860569,-500.0,0.00024109,3]
[329459877,1718377860580,-500.0,0.00024109,3]
[329459878,1718377860616,-564.02859095,0.00024109,3]
[329459879,1718377860629,-277.28858241,0.00024109,3]
[329459880,1718377860642,-824.4,0.00024109,3]
[329459881,1718377860652,-500.0,0.00024109,3]
[329459882,1718377860663,-500.0,0.00024109,3]
[329459883,1718377860693,-403.87885187,0.00024109,3]
[329459884,1718377860729,-500.0,0.00024109,3]
[329459885,1718377860742,-500.0,0.00024109,3]
[329459886,1718377860753,-555.40446833,0.00024109,3]
[329459887,1718377860789,-500.0,0.00024109,2]
[329459888,1718377860802,-500.0,0.00024109,3]
[329459889,1718377860828,-500.0,0.00024109,3]
[329459890,1718377860838,-500.0,0.00024109,3]
[329459891,1718377860885,-570.83,0.00024109,3]
[329459892,1718377860928,-642.25,0.00024109,3]
[329459893,1718377860947,-525.38964556,0.00024109,3]
[329459894,1718377860980,-500.0,0.00024109,3]
[329459895,1718377860998,-500.0,0.00024109,3]
[329459896,1718377861013,-500.0,0.00024109,3]
[329459897,1718377861038,-500.0,0.00024109,3]
[329459898,1718377861066,-501.91638912,0.00024109,3]
[329459899,1718377861128,-500.0,0.00024109,3]
[329459900,1718377861143,-500.0,0.00024109,3]
[329459901,1718377861164,-500.0,0.00024109,3]
[329459902,1718377861188,-500.0,0.00024109,3]
[329459903,1718377861202,-500.0,0.00024109,3]
[329459904,1718377861234,-1145.61,0.00024109,3]
[329459905,1718377861255,-500.0,0.00024109,3]
[329459906,1718377861275,-500.0,0.00024109,3]
[329459907,1718377861288,-500.0,0.00024109,3]
[329459908,1718377861340,-500.0,0.00024109,3]
[329459909,1718377861354,-500.0,0.00024109,3]
[329459910,1718377861388,-500.0,0.00024109,3]
[329459911,1718377861411,-243.49743855,0.00024109,3]
[329459912,1718377861424,-500.0,0.00024109,3]
[329459913,1718377861442,-508.15231159,0.00024109,3]
[329459914,1718377861470,-500.0,0.00024109,3]
[329459915,1718377861493,-500.0,0.00024109,3]
[329459916,1718377861525,-500.0,0.00024109,3]
[329459917,1718377861548,-627.81,0.00024109,3]
[329459918,1718377861584,-500.0,0.00024109,3]
[329459919,1718377861608,-500.0,0.00024109,3]
[329459920,1718377861628,-500.0,0.00024109,3]
[329459921,1718377861642,-500.0,0.00024109,3]
[329459922,1718377861655,-500.0,0.00024109,3]
[329459923,1718377861666,-500.0,0.00024109,3]
[329459924,1718377861689,-541.68331791,0.00024109,3]
[329459925,1718377861772,-500.0,0.00024109,3]
[329459926,1718377861803,-500.0,0.00024109,3]
[329459927,1718377861833,-197.1454293,0.00024109,3]
[329459928,1718377861851,-500.0,0.00024109,3]
[329459929,1718377861869,-500.0,0.00024109,3]
[329459930,1718377861880,-500.0,0.00024109,3]
[329459931,1718377861910,-748.02,0.00024109,3]
[329459932,1718377861940,-501.9386158,0.00024109,3]
[329459933,1718377861968,-542.07243569,0.00024109,3]
[329459934,1718377861982,-500.0,0.00024109,3]
[329459935,1718377861998,-653.69,0.00024109,3]
[329459936,1718377862030,-500.0,0.00024109,3]
[329459937,1718377862041,-506.4884528,0.00024109,3]
[329459938,1718377862080,-500.0,0.00024109,3]
[329459939,1718377862133,-500.0,0.00024109,3]
[329459940,1718377862146,-562.87401725,0.00024109,3]
[329459941,1718377862185,-500.0,0.00024109,3]
[329459942,1718377862225,-500.0,0.00024109,3]
[329459943,1718377862257,-500.0,0.00024109,3]
[329459944,1718377862333,-500.0,0.00024109,3]
[329459945,1718377862365,-500.0,0.00024109,3]
[329459946,1718377862407,-500.0,0.00024109,3]
[329459947,1718377862429,-521.46719689,0.00024109,3]
[329459948,1718377862449,-500.0,0.00024109,3]
[329459949,1718377862480,-500.0,0.00024109,3]
[329459950,1718377862509,-500.0,0.00024109,3]
[329459951,1718377862520,-500.0,0.00024109,3]
[329459952,1718377862531,-500.0,0.00024109,3]
[329459953,1718377862568,-513.76833958,0.00024109,3]
[329459954,1718377862579,-500.0,0.00024109,3]
[329459955,1718377862589,-802.7,0.00024109,3]
[329459956,1718377862600,-500.0,0.00024109,3]
[329459957,1718377862648,-500.0,0.00024109,3]
[329459958,1718377862668,-500.0,0.00024109,3]
[329459959,1718377862690,-505.9975706,0.00024109,3]
[329459960,1718377862719,-570.22,0.00024109,3]
[329459961,1718377862740,-500.0,0.00024109,3]
[329459962,1718377862784,-511.80903401,0.00024109,3]
[329459963,1718377862836,-502.78235228,0.00024109,3]
[329459964,1718377862884,-500.0,0.00024109,3]
[329459965,1718377862913,-500.0,0.00024109,3]
[329459966,1718377862946,-500.0,0.00024109,3]
[329459967,1718377862957,-500.0,0.00024109,3]
[329459968,1718377862990,-500.0,0.00024109,3]
[329459969,1718377863032,-500.0,0.00024109,3]
[329459970,1718377863087,-504.76574691,0.00024109,3]
[329459971,1718377863148,-500.0,0.00024109,3]
[329459972,1718377863165,-500.0,0.00024109,3]
[329459973,1718377863198,-500.0,0.00024109,3]
[329459974,1718377863254,-1341.78,0.00024109,3]
[329459975,1718377863288,-500.0,0.00024109,3]
[329459976,1718377863312,-303.31,0.00024109,3]
[329459977,1718377863334,-506.33024098,0.00024109,3]
[329459978,1718377863387,-557.94940384,0.00024109,3]
[329459979,1718377863416,-687.36,0.00024109,3]
[329459980,1718377863429,-500.0,0.00024109,3]
[329459981,1718377863444,-500.0,0.00024109,2]
[329459982,1718377863469,-506.60557272,0.00024109,3]
[329459983,1718377863481,-500.0,0.00024109,3]
[329459984,1718377863516,-500.0,0.00024109,3]
[329459985,1718377863549,-500.0,0.00024109,3]
[329459986,1718377863576,-500.0,0.00024109,3]
[329459987,1718377863613,-515.78297051,0.00024109,3]
[329459988,1718377863663,-500.0,0.00024109,3]
[329459989,1718377863697,-500.0,0.00024109,3]
[329459990,1718377863724,-500.0,0.00024109,3]
[329459991,1718377863756,-849.78,0.00024109,3]
[329459992,1718377863783,-500.0,0.00024109,3]
[329459993,1718377863795,-500.0,0.00024109,3]